bitfinex/quotes_BTCUSD_20250602
["timestamp","ask_amount","ask_price","bid_price","bid_amount"]
[1748839641459,0.9388843,104960.0,104950.0,0.441643]
[1748839641667,0.9388843,104960.0,104950.0,0.48397361]
[1748839642018,0.9388843,104960.0,104950.0,0.457243]
[1748839642255,0.9388843,104960.0,104950.0,0.46615308]
[1748839642463,0.9388843,104960.0,104950.0,0.47506312]
[1748839642699,0.9388843,104960.0,104950.0,0.457243]
[1748839643128,0.61890878,104960.0,104950.0,0.57091742]
[1748839643346,0.53054878,104960.0,104950.0,0.77405903]
[1748839643572,0.82014878,104960.0,104950.0,0.77405903]
[1748839643794,0.53054878,104960.0,104950.0,0.79187552]
[1748839644021,0.61890616,104970.0,104960.0,0.04094]
[1748839644223,0.90850616,104970.0,104960.0,0.04094]
[1748839644427,0.90850616,104970.0,104960.0,0.05875237]
[1748839644626,0.90850616,104970.0,104960.0,0.05875223]
[1748839645027,0.90850616,104970.0,104960.0,0.04094]
[1748839645357,0.90850616,104970.0,104960.0,0.08061172]
[1748839645566,0.90850616,104970.0,104960.0,0.08261172]
[1748839645851,0.90850616,104970.0,104960.0,0.08261168]
[1748839646075,0.90850616,104970.0,104960.0,0.06480084]
[1748839646280,0.90850616,104970.0,104960.0,0.08261168]
[1748839646620,0.90850616,104970.0,104960.0,0.10042256]
[1748839647880,0.90850616,104970.0,104960.0,0.1182369]
[1748839648080,0.90850616,104970.0,104960.0,0.1182366]
[1748839648221,0.90850616,104970.0,104960.0,0.10042256]
[1748839648837,0.90850616,104970.0,104960.0,0.11823625]
[1748839649149,0.90850616,104970.0,104960.0,0.10042256]
[1748839649508,0.53054616,104970.0,104960.0,0.10042256]
[1748839649709,0.90846616,104970.0,104960.0,0.11823625]
[1748839650102,0.34,104970.0,104960.0,0.42245306]
[1748839650303,0.84866956,104970.0,104960.0,0.4319804]
[1748839650502,0.84866956,104970.0,104960.0,0.44150765]
[1748839650934,0.84866956,104970.0,104960.0,0.44150248]
[1748839651323,0.84866956,104970.0,104960.0,0.45931104]
[1748839651548,0.83914349,104970.0,104960.0,0.45931104]
[1748839651726,0.54958349,104970.0,104960.0,0.45931104]
[1748839651926,0.83914349,104970.0,104960.0,0.45930637]
[1748839652194,0.83914349,104970.0,104960.0,0.44149781]
[1748839652399,0.83914349,104970.0,104960.0,0.44149751]
[1748839652574,0.83914349,104970.0,104960.0,0.42369376]
[1748839652775,0.83914349,104970.0,104960.0,0.44149735]
[1748839652987,0.83914349,104970.0,104960.0,0.42369376]
[1748839653720,0.83914349,104970.0,104960.0,0.41416651]
[1748839653918,0.82961715,104970.0,104960.0,0.41416651]
[1748839654136,0.54005715,104970.0,104960.0,0.41416651]
[1748839654529,0.54005715,104970.0,104960.0,0.43197049]
[1748839655379,0.54005715,104970.0,104960.0,0.44149774]
[1748839656582,0.54005715,104970.0,104960.0,0.2496934]
[1748839656814,0.54005715,104970.0,104960.0,0.22884592]
[1748839656993,0.54005715,104970.0,104960.0,0.24969328]
[1748839657197,0.54005715,104970.0,104960.0,0.23189436]
[1748839657809,0.54005715,104970.0,104960.0,0.11994006]
[1748839658014,0.85949831,104970.0,104960.0,0.10454006]
[1748839658240,0.85949831,104970.0,104960.0,0.12233927]
[1748839658897,0.85949831,104970.0,104960.0,0.14013879]
[1748839659085,0.85949831,104970.0,104960.0,0.12233958]
[1748839659643,0.85949831,104970.0,104960.0,0.12233959]
[1748839660420,0.85949831,104970.0,104960.0,0.12234475]
[1748839660822,0.85949831,104970.0,104960.0,0.10454006]
[1748839661030,0.85949831,104970.0,104960.0,0.12234475]
[1748839661261,0.85949831,104970.0,104960.0,0.11929631]
[1748839661461,0.85949831,104970.0,104960.0,0.12234479]
[1748839661667,0.87403916,104970.0,104960.0,0.12234479]
[1748839661896,0.90563916,104970.0,104960.0,0.11929631]
[1748839662106,1.22508032,104970.0,104960.0,0.09205162]
[1748839676410,1.31344032,104970.0,104960.0,0.09205162]
[1748839680390,1.28184032,104970.0,104960.0,0.09205162]
[1748839680591,0.96239916,104970.0,104960.0,0.09205162]
[1748839681223,1.28210992,104970.0,104960.0,0.09205162]
[1748839681424,1.31390992,104970.0,104960.0,0.09205162]
[1748839683203,1.40976422,104970.0,104960.0,0.09205162]
[1748839685337,1.40988676,104970.0,104960.0,0.09205162]
[1748839696355,1.82152676,104970.0,104960.0,0.09205162]
[1748839699960,1.85013776,104970.0,104960.0,0.09205162]
[1748839704780,1.91610271,104970.0,104960.0,0.09205162]
[1748839705492,1.88430271,104970.0,104960.0,0.09205162]
[1748839707253,1.88431099,104970.0,104960.0,0.09205162]
[1748839707662,1.24502825,104970.0,104960.0,0.09205162]
[1748839707869,1.88431099,104970.0,104960.0,0.09205162]
[1748839713147,1.8843851,104970.0,104960.0,0.09205162]
[1748839713762,1.97689632,104970.0,104960.0,0.09205162]
[1748839715372,1.8843851,104970.0,104960.0,0.09205162]
[1748839717667,1.88439452,104970.0,104960.0,0.09205162]
[1748839720608,3.88439452,104970.0,104960.0,0.09205162]
[1748839722043,3.88439843,104970.0,104960.0,0.09205162]
[1748839723396,3.85064334,104970.0,104960.0,0.09205162]
[1748839723600,3.97690982,104970.0,104960.0,0.09205162]
[1748839723804,3.94315456,104970.0,104960.0,0.09205162]
[1748839724314,3.85064334,104970.0,104960.0,0.09205162]
[1748839728662,3.88439002,104970.0,104960.0,0.09205162]
[1748839728876,3.85063922,104970.0,104960.0,0.09205162]
[1748839729618,3.88438995,104970.0,104960.0,0.09205162]
[1748839733220,3.88438995,104970.0,104960.0,0.10855162]
[1748839735331,3.81834604,104970.0,104960.0,0.10855162]
[1748839735541,3.97689837,104970.0,104960.0,0.09205162]
[1748839735744,8.30307119,104970.0,104960.0,0.09205162]
[1748839735948,8.30803769,104970.0,104960.0,0.09205162]
[1748839736934,8.30803769,104970.0,104960.0,0.09005162]
[1748839737491,8.30803769,104970.0,104960.0,0.08905162]
[1748839737696,8.30903769,104970.0,104960.0,0.08905162]
[1748839740937,8.59851769,104970.0,104960.0,0.08905162]
[1748839741137,8.19027769,104970.0,104960.0,0.08905162]
[1748839741466,8.24847632,104970.0,104960.0,0.08905162]
[1748839743104,8.34098754,104970.0,104960.0,0.08905162]
[1748839744151,8.24847632,104970.0,104960.0,0.08905162]
[1748839749249,8.24847632,104970.0,104960.0,0.10465162]
[1748839751007,3.85656432,104970.0,104960.0,0.12095162]
[1748839751230,4.14608432,104970.0,104960.0,0.12095162]
[1748839751444,4.1798155,104970.0,104960.0,0.12095162]
[1748839751661,4.11379254,104970.0,104960.0,0.12095162]
[1748839751853,4.1797981,104970.0,104960.0,0.12095162]
[1748839756140,4.11379254,104970.0,104960.0,0.12095162]
[1748839756258,4.17980224,104970.0,104960.0,0.12095162]
[1748839757882,4.1965265,104970.0,104960.0,0.12095162]
[1748839758291,4.1965265,104970.0,104960.0,0.10465162]
[1748839760536,4.19653232,104970.0,104960.0,0.10465162]
[1748839760999,4.19653232,104970.0,104960.0,0.08905162]
[1748839761159,4.19653232,104970.0,104960.0,0.12055162]
[1748839762522,4.19653232,104970.0,104960.0,0.10555162]
[1748839764587,4.16279607,104970.0,104960.0,0.10555162]
[1748839765165,4.16279607,104970.0,104960.0,0.08905162]
[1748839765503,4.48243744,104970.0,104960.0,0.08905162]
[1748839765751,4.48243744,104970.0,104960.0,0.04140861]
[1748839765752,8.61772944,104970.0,104960.0,0.04140861]
[1748839765966,8.61772944,104970.0,104960.0,0.01781223]
[1748839766413,8.61828944,104970.0,104960.0,0.01781223]
[1748839766619,8.61828944,104970.0,104960.0,1e-08]
[1748839766821,8.61728944,104970.0,104960.0,1e-08]
[1748839767376,8.61928944,104970.0,104960.0,1e-08]
[1748839768201,9.11188944,104970.0,104960.0,1e-08]
[1748839768745,9.11388944,104970.0,104960.0,1e-08]
[1748839769446,9.11389993,104970.0,104960.0,1e-08]
[1748839769854,0.55461688,104960.0,104950.0,0.03562662]
[1748839769990,5.88775016,104960.0,104950.0,0.03558662]
[1748839770230,5.85400343,104960.0,104950.0,0.02697662]
[1748839770433,5.94826627,104960.0,104950.0,0.02697662]
[1748839770632,5.95324032,104960.0,104950.0,0.02697662]
[1748839770832,5.92134032,104960.0,104950.0,0.02697662]
[1748839771929,5.92234032,104960.0,104950.0,0.02697662]
[1748839773074,5.92234032,104960.0,104950.0,0.02037662]
[1748839773599,5.92234032,104960.0,104950.0,0.00256266]
[1748839773748,5.92232166,104960.0,104950.0,0.00256266]
[1748839776429,5.82981044,104960.0,104950.0,0.00256266]
[1748839778187,5.82980207,104960.0,104950.0,0.00256266]
[1748839781036,5.82980207,104960.0,104950.0,0.01866266]
[1748839781587,5.82980207,104960.0,104950.0,0.03506266]
[1748839782989,6.11928207,104960.0,104950.0,0.03506266]
[1748839783188,5.5984407,104960.0,104950.0,0.03506266]
[1748839783416,1.7855287,104960.0,104950.0,0.03506266]
[1748839784401,1.7854782,104960.0,104950.0,0.03506266]
[1748839784814,1.04560305,104960.0,104950.0,0.03506266]
[1748839785043,0.86269748,104960.0,104950.0,0.03506266]
[1748839785239,0.86269748,104960.0,104950.0,0.04450266]
[1748839785240,0.95097748,104960.0,104950.0,0.04450266]
[1748839785403,1.29097748,104960.0,104950.0,0.04450266]
[1748839801015,1.30551833,104960.0,104950.0,0.03506266]
[1748839801226,1.81352522,104960.0,104950.0,0.01866266]
[1748839801429,1.81352522,104960.0,104950.0,0.00256266]
[1748839801635,1.721014,104960.0,104950.0,0.01766266]
[1748839801807,1.721014,104960.0,104950.0,0.03376266]
[1748839802051,1.721014,104960.0,104950.0,0.01766266]
[1748839802250,1.721014,104960.0,104950.0,0.00256266]
[1748839803899,1.721014,104960.0,104950.0,0.01846266]
[1748839804416,1.721014,104960.0,104950.0,0.00256266]
[1748839804614,1.77353098,104960.0,104950.0,0.00256266]
[1748839804964,1.83951701,104960.0,104950.0,0.00256266]
[1748839806522,1.80546303,104960.0,104950.0,0.00256266]
[1748839807808,1.80546684,104960.0,104950.0,0.00256266]
[1748839810032,2.09490684,104960.0,104950.0,0.00256266]
[1748839811467,2.09490684,104960.0,104950.0,0.01826266]
[1748839812187,1.80547027,104960.0,104950.0,0.01826266]
[1748839812368,1.7752689,104960.0,104950.0,0.03396266]
[1748839816001,1.70927563,104960.0,104950.0,0.03396266]
[1748839817159,1.77526935,104960.0,104950.0,0.03396266]
[1748839817334,1.77526917,104960.0,104950.0,0.03396266]
[1748839818877,1.33155563,104960.0,104950.0,0.03396266]
[1748839819020,1.59884048,104960.0,104950.0,0.03396266]
[1748839819217,1.58037748,104960.0,104950.0,0.03396266]
[1748839819425,1.59491833,104960.0,104950.0,0.03396266]
[1748839825092,1.98056446,104960.0,104950.0,0.00256266]
[1748839825243,2.16892998,104960.0,104950.0,0.00256266]
[1748839825450,2.16893575,104960.0,104950.0,0.00256266]
[1748839827735,2.07642453,104960.0,104950.0,0.00256266]
[1748839828176,2.10882453,104960.0,104950.0,0.00256266]
[1748839829756,2.07655838,104960.0,104950.0,0.00256266]
[1748839829968,6.21123743,104960.0,104950.0,0.00256266]
[1748839835323,6.17883743,104960.0,104950.0,0.00256266]
[1748839837703,6.59055743,104960.0,104950.0,0.00256266]
[1748839838120,6.68306865,104960.0,104950.0,0.00256266]
[1748839838607,6.61703722,104960.0,104950.0,0.00256266]
[1748839838832,6.68306287,104960.0,104950.0,0.00256266]
[1748839840068,6.59055165,104960.0,104950.0,0.00256266]
[1748839843205,6.59055114,104960.0,104950.0,0.00256266]
[1748839847084,6.62235114,104960.0,104950.0,0.00256266]
[1748839847322,6.59055114,104960.0,104950.0,0.00256266]
[1748839847539,6.59055357,104960.0,104950.0,0.00256266]
[1748839847768,6.68306479,104960.0,104950.0,0.00256266]
[1748839851348,6.69896479,104960.0,104950.0,0.00256266]
[1748839851851,6.64932238,104960.0,104950.0,0.00256266]
[1748839852027,6.68022238,104960.0,104950.0,0.00256266]
[1748839855803,6.64793722,104960.0,104950.0,0.00256266]
[1748839860037,6.61703722,104960.0,104950.0,0.00256266]
[1748839860250,6.61759722,104960.0,104950.0,0.00256266]
[1748839860436,6.64959722,104960.0,104950.0,0.00256266]
[1748839860583,6.67821422,104960.0,104950.0,0.00256266]
[1748839861182,7.17081422,104960.0,104950.0,0.00256266]
[1748839863248,7.20309592,104960.0,104950.0,0.00256266]
[1748839864643,8.16202003,104960.0,104950.0,0.00256266]
[1748839864854,7.20309592,104960.0,104950.0,0.00256266]
[1748839865931,7.13881422,104960.0,104950.0,0.00256266]
[1748839866141,7.13781422,104960.0,104950.0,0.00256266]
[1748839866349,7.045303,104960.0,104950.0,0.00256266]
[1748839866651,7.047303,104960.0,104950.0,0.00256266]
[1748839866793,7.049303,104960.0,104950.0,0.00256266]
[1748839868208,7.08158319,104960.0,104950.0,0.00256266]
[1748839870101,7.17409441,104960.0,104950.0,0.00256266]
[1748839870243,7.08158319,104960.0,104950.0,0.00256266]
[1748839870439,7.049303,104960.0,104950.0,0.00256266]
[1748839870669,7.08158298,104960.0,104950.0,0.00256266]
[1748839872840,7.08158298,104960.0,104940.0,0.0308]
[1748839873058,0.20968291,104920.0,104910.0,0.0036654]
[1748839873274,2.40844217,104920.0,104910.0,0.00415215]
[1748839873698,2.40844217,104920.0,104910.0,0.03575215]
[1748839874124,2.41799904,104920.0,104910.0,0.03575215]
[1748839874535,2.41899904,104920.0,104910.0,0.03875215]
[1748839875570,2.41799904,104920.0,104910.0,0.03575215]
[1748839875980,2.41799904,104920.0,104910.0,0.03775215]
[1748839876669,2.43719664,104920.0,104910.0,0.03775215]
[1748839878315,2.11755527,104920.0,104910.0,0.03775215]
[1748839887933,2.11759527,104920.0,104910.0,0.03775215]
[1748839891465,1.10059253,104920.0,104910.0,0.03775215]
[1748839891672,2.02174097,104920.0,104910.0,0.03775215]
[1748839893234,2.0121841,104920.0,104910.0,0.03775215]
[1748839895300,1.6344641,104920.0,104910.0,0.03775215]
[1748839895509,2.0121841,104920.0,104910.0,0.03775215]
[1748839895923,2.0121841,104920.0,104910.0,0.03523215]
[1748839896117,2.1080384,104920.0,104910.0,0.03523215]
[1748839898818,2.42767977,104920.0,104910.0,0.03523215]
[1748839899234,2.42767977,104920.0,104910.0,0.00363215]
[1748839899665,6.56177177,104920.0,104910.0,0.00363215]
[1748839899843,6.56672853,104920.0,104910.0,0.00363215]
[1748839902891,0.54976289,104880.0,104870.0,0.08568494]
[1748839903092,1.27728563,104880.0,104870.0,0.09461667]
[1748839903304,1.27728563,104880.0,104870.0,0.09461693]
[1748839903507,1.27728563,104880.0,104870.0,0.12611693]
[1748839903707,1.27728563,104880.0,104870.0,0.11718494]
[1748839903911,1.27728563,104880.0,104870.0,0.12611151]
[1748839904118,1.27728563,104880.0,104870.0,0.12611152]
[1748839904322,1.27728563,104880.0,104870.0,0.04995939]
[1748839904537,1.27828563,104880.0,104870.0,0.05795939]
[1748839904823,1.27828563,104880.0,104870.0,0.05495939]
[1748839905008,1.27828563,104880.0,104870.0,0.05495601]
[1748839905149,0.97467541,104880.0,104870.0,0.05151601]
[1748839905353,0.65454374,104880.0,104870.0,0.05151679]
[1748839905631,0.64000289,104880.0,104870.0,0.05203281]
[1748839905758,0.64000289,104880.0,104870.0,0.06095263]
[1748839905961,0.64000289,104880.0,104870.0,0.05203281]
[1748839906161,0.95913456,104880.0,104870.0,0.05595265]
[1748839906367,0.95913456,104880.0,104870.0,0.05595269]
[1748839906883,0.95913456,104880.0,104870.0,0.05695269]
[1748839907271,0.95813456,104880.0,104870.0,0.05095234]
[1748839907429,0.95913456,104880.0,104870.0,0.05195234]
[1748839907610,0.95913456,104880.0,104870.0,0.05195197]
[1748839907827,0.95913456,104880.0,104870.0,0.05194908]
[1748839908896,0.95913456,104880.0,104870.0,0.05194649]
[1748839909415,0.95913456,104880.0,104870.0,0.04303281]
[1748839909823,0.95913456,104880.0,104870.0,0.05194436]
[1748839910225,0.95913456,104880.0,104870.0,0.04303281]
[1748839910428,0.95913456,104880.0,104870.0,0.05194436]
[1748839910639,0.95913456,104880.0,104870.0,0.05194301]
[1748839911002,0.95913456,104880.0,104870.0,0.0519426]
[1748839911220,0.95913456,104880.0,104870.0,0.04303281]
[1748839911428,0.95913456,104880.0,104870.0,0.0519426]
[1748839911993,0.95913456,104880.0,104870.0,0.05194115]
[1748839912430,0.95913456,104880.0,104870.0,0.04303281]
[1748839914369,0.95913456,104880.0,104870.0,0.03359281]
[1748839914571,0.95913456,104880.0,104870.0,0.04303281]
[1748839915041,0.95913456,104880.0,104870.0,0.03359281]
[1748839915327,0.95913456,104880.0,104870.0,0.04303281]
[1748839919652,0.95913456,104880.0,104870.0,0.03359281]
[1748839919854,0.95913456,104880.0,104870.0,0.04303281]
[1748839922444,0.92936289,104880.0,104870.0,0.04303281]
[1748839922658,1.24949456,104880.0,104870.0,0.04303281]
[1748839923659,1.25884368,104880.0,104870.0,0.04303281]
[1748839924457,1.5935162,104880.0,104870.0,0.03359281]
[1748839924661,1.5935162,104880.0,104870.0,0.01859281]
[1748839925901,1.5935162,104880.0,104870.0,0.03449281]
[1748839926103,1.5935162,104880.0,104870.0,0.01859281]
[1748839926753,1.5935162,104880.0,104870.0,0.00209281]
[1748839926990,1.78188172,104880.0,104870.0,0.00209281]
[1748839927200,1.81825233,104880.0,104870.0,0.00209281]
[1748839927497,0.54527134,104860.0,104840.0,0.0309]
[1748839927729,0.20530773,104840.0,104830.0,0.0509]
[1748839928009,0.66023807,104840.0,104830.0,0.02896681]
[1748839928281,0.66023807,104840.0,104830.0,0.02004867]
[1748839928282,1.30050141,104840.0,104830.0,0.02004867]
[1748839928923,1.01196974,104840.0,104830.0,0.02004867]
[1748839929400,0.69239807,104840.0,104830.0,0.02204867]
[1748839929615,4.79579007,104840.0,104830.0,0.00404867]
[1748839929823,5.43605341,104840.0,104830.0,0.00404867]
[1748839930032,5.53755211,104840.0,104830.0,0.00404867]
[1748839930243,1.19512834,104830.0,104820.0,0.02]
[1748839930449,5.42497464,104830.0,104820.0,0.02004869]
[1748839930649,5.51804586,104830.0,104820.0,0.02004869]
[1748839930922,5.42553464,104830.0,104820.0,0.02004869]
[1748839932023,4.7698713,104830.0,104820.0,0.02004869]
[1748839932250,4.7536713,104830.0,104820.0,0.02004869]
[1748839932465,5.39393464,104830.0,104820.0,0.02004869]
[1748839932670,5.39493464,104830.0,104820.0,0.02004869]
[1748839933380,5.39437464,104830.0,104820.0,0.02004869]
[1748839933617,4.7541113,104830.0,104820.0,0.02004869]
[1748839933835,5.1440713,104830.0,104820.0,0.02004869]
[1748839934041,5.46420297,104830.0,104820.0,0.02004869]
[1748839934689,5.55671419,104830.0,104820.0,0.02004869]
[1748839935402,5.87684586,104830.0,104820.0,0.02004869]
[1748839935840,5.78433464,104830.0,104820.0,0.02004869]
[1748839936992,5.81593464,104830.0,104820.0,0.02004869]
[1748839937690,5.80218365,104830.0,104820.0,0.02004869]
[1748839938307,5.81172272,104830.0,104820.0,0.02004869]
[1748839941170,6.30432272,104830.0,104820.0,0.02004869]
[1748839941423,6.39683394,104830.0,104820.0,0.02004869]
[1748839941626,6.39739394,104830.0,104820.0,0.02004869]
[1748839941833,6.39739394,104830.0,104800.0,0.01491]
[1748839941834,0.56444383,104810.0,104800.0,0.01491]
[1748839942055,5.0828218,104810.0,104800.0,0.01505578]
[1748839943130,5.0828218,104810.0,104800.0,0.01905578]
[1748839943131,5.0838218,104810.0,104800.0,0.01905578]
[1748839943559,5.0828218,104810.0,104800.0,0.01505578]
[1748839944391,5.0838218,104810.0,104800.0,0.01705578]
[1748839944877,5.0848218,104810.0,104800.0,0.01805578]
[1748839945790,5.17733302,104810.0,104800.0,0.01805578]
[1748839946004,5.20843302,104810.0,104800.0,0.01805578]
[1748839946247,5.1159218,104810.0,104800.0,0.01805578]
[1748839946489,4.79579013,104810.0,104800.0,0.01805578]
[1748839946709,5.0986218,104810.0,104800.0,0.01505578]
[1748839946937,5.5208618,104810.0,104800.0,0.01605578]
[1748839947131,5.5140618,104810.0,104800.0,0.01605578]
[1748839947609,5.51902896,104810.0,104800.0,0.01605578]
[1748839947851,5.55092896,104810.0,104800.0,0.01605578]
[1748839948279,5.53442896,104810.0,104800.0,0.01605578]
[1748839948494,5.62694018,104810.0,104800.0,0.01605578]
[1748839948965,5.53442896,104810.0,104800.0,0.01605578]
[1748839950306,0.20043886,104770.0,104760.0,0.02337544]
[1748839950518,0.20043886,104770.0,104760.0,0.12809776]
[1748839950732,0.2099833,104770.0,104760.0,0.31901032]
[1748839951666,0.2099833,104770.0,104760.0,0.31901636]
[1748839951925,0.21012876,104770.0,104760.0,0.31901636]
[1748839952096,0.21112876,104770.0,104760.0,0.32301636]
[1748839952616,0.21212876,104770.0,104760.0,0.32402389]
[1748839952866,0.21212876,104770.0,104760.0,0.31008845]
[1748839953311,0.01168953,104770.0,104760.0,0.76710075]
[1748839953527,0.01168953,104770.0,104760.0,0.76710125]
[1748839953746,0.02123379,104770.0,104760.0,0.76710125]
[1748839953981,0.01168953,104770.0,104760.0,0.76710125]
[1748839954197,0.02123388,104770.0,104760.0,0.75821916]
[1748839954417,0.02123388,104770.0,104760.0,0.76711035]
[1748839954639,0.02123388,104770.0,104760.0,0.6908662]
[1748839954851,0.03077832,104770.0,104760.0,0.68197422]
[1748839955070,0.03077832,104770.0,104760.0,0.6908662]
[1748839955292,0.02123388,104770.0,104760.0,0.6908662]
[1748839955511,0.03077832,104770.0,104760.0,0.6908662]
[1748839955749,0.04032285,104770.0,104760.0,0.69087887]
[1748839955967,0.03077832,104770.0,104760.0,0.69087887]
[1748839956181,0.04032285,104770.0,104760.0,0.69087887]
[1748839956421,0.04032285,104770.0,104760.0,0.69087947]
[1748839956633,0.04032285,104770.0,104760.0,0.6957571]
[1748839956848,0.04032285,104770.0,104760.0,0.37562543]
[1748839957073,0.04032285,104770.0,104760.0,0.38517051]
[1748839957291,0.03411968,104770.0,104760.0,0.70530218]
[1748839957516,0.03411968,104770.0,104760.0,0.70531819]
[1748839957931,0.03411968,104770.0,104760.0,0.70531826]
[1748839958171,0.03383332,104770.0,104760.0,0.70531828]
[1748839958383,0.04337794,104770.0,104760.0,0.69577329]
[1748839958607,0.04337794,104770.0,104760.0,0.69577919]
[1748839959059,0.04337794,104770.0,104760.0,0.37564752]
[1748839959060,0.01507346,104770.0,104760.0,0.37564752]
[1748839959288,0.2155125,104770.0,104760.0,0.34701174]
[1748839959512,0.2155125,104770.0,104760.0,0.16564867]
[1748839959727,0.2155125,104770.0,104760.0,0.15671755]
[1748839959940,0.2155125,104770.0,104760.0,0.15610305]
[1748839960183,0.2155125,104770.0,104760.0,0.16564858]
[1748839960401,0.20998366,104770.0,104760.0,0.15610469]
[1748839960610,0.20043904,104770.0,104760.0,0.16565021]
[1748839961023,0.20043904,104770.0,104760.0,0.35656277]
[1748839961643,0.20043904,104770.0,104760.0,0.36610901]
[1748839961891,0.20043904,104770.0,104760.0,0.35656366]
[1748839962097,0.20043904,104770.0,104760.0,0.3661091]
[1748839962518,0.20043904,104770.0,104760.0,0.37565462]
[1748839962740,0.20043904,104770.0,104760.0,0.69578629]
[1748839962957,0.20043904,104770.0,104760.0,0.68624094]
[1748839963378,0.20043904,104770.0,104760.0,0.36370927]
[1748839963596,0.20043904,104770.0,104760.0,0.36370991]
[1748839964765,0.20043904,104770.0,104760.0,0.36371069]
[1748839965403,0.20043904,104770.0,104760.0,0.35477546]
[1748839965625,0.20043904,104770.0,104760.0,0.37325688]
[1748839966889,0.20043904,104770.0,104760.0,0.38280205]
[1748839967097,0.20043904,104770.0,104760.0,0.38280306]
[1748839967499,0.20043904,104770.0,104760.0,0.38280413]
[1748839968091,0.62435812,104780.0,104770.0,0.21323433]
[1748839968281,0.62435812,104780.0,104770.0,0.15166753]
[1748839968475,0.62435812,104780.0,104770.0,0.15405343]
[1748839968683,0.62435812,104780.0,104770.0,0.15405453]
[1748839969283,0.62535812,104780.0,104770.0,0.15705453]
[1748839969505,0.62635812,104780.0,104770.0,0.15417712]
[1748839969942,0.53287812,104780.0,104770.0,0.15417712]
[1748839970543,0.53287812,104780.0,104770.0,0.15666885]
[1748839971374,0.53287812,104780.0,104770.0,0.14812422]
[1748839971615,0.53287812,104780.0,104770.0,0.15179732]
[1748839972702,0.53287812,104780.0,104770.0,0.15179767]
[1748839973794,0.53287812,104780.0,104770.0,0.15179771]
[1748839975168,0.53287812,104780.0,104770.0,0.15179784]
[1748839975790,0.53287812,104780.0,104770.0,0.15179792]
[1748839976628,0.53287812,104780.0,104770.0,0.15179798]
[1748839977261,0.53287812,104780.0,104770.0,0.15179805]
[1748839977668,0.53287812,104780.0,104770.0,0.15179809]
[1748839978217,0.53287812,104780.0,104770.0,0.15179822]
[1748839978619,0.53287812,104780.0,104770.0,0.04064392]
[1748839979206,0.53287812,104780.0,104770.0,0.04064406]
[1748839979859,0.53287812,104780.0,104770.0,0.05594406]
[1748839980067,0.53287812,104780.0,104770.0,0.04699967]
[1748839980276,0.53287812,104780.0,104770.0,0.05594406]
[1748839980670,0.62635812,104780.0,104770.0,0.05594419]
[1748839980908,0.62635812,104780.0,104770.0,0.05594465]
[1748839981100,0.62635812,104780.0,104770.0,0.05594469]
[1748839981488,0.62635812,104780.0,104770.0,0.0559449]
[1748839982369,0.62635812,104780.0,104770.0,0.04700013]
[1748839982578,0.53287812,104780.0,104770.0,0.05594516]
[1748839983345,0.53287812,104780.0,104770.0,0.05594548]
[1748839983600,0.53287812,104780.0,104770.0,0.0406457]
[1748839984073,0.53287812,104780.0,104770.0,0.02514568]
[1748839984259,0.53287812,104780.0,104770.0,0.0214719]
[1748839984495,0.53287812,104780.0,104770.0,0.02147197]
[1748839984922,0.53287812,104780.0,104770.0,0.02147176]
[1748839985646,0.71287812,104780.0,104770.0,0.01252657]
[1748839985844,0.71287812,104780.0,104770.0,0.02147159]
[1748839986052,0.71287812,104780.0,104770.0,0.02514537]
[1748839986259,0.71287812,104780.0,104770.0,0.04124537]
[1748839987197,1.10499812,104780.0,104770.0,0.15279967]
[1748839987727,1.10499812,104780.0,104770.0,0.02514537]
[1748839988162,1.10499812,104780.0,104770.0,0.0251456]
[1748839988342,1.10499812,104780.0,104770.0,0.02147182]
[1748839988539,1.10499812,104780.0,104770.0,0.02514559]
[1748839988818,1.10499812,104780.0,104770.0,0.0251456]
[1748839989030,1.10499812,104780.0,104770.0,0.02514556]
[1748839990208,1.13549812,104780.0,104770.0,0.02514554]
[1748839990836,1.13549812,104780.0,104770.0,0.02147177]
[1748839991054,1.13549812,104780.0,104770.0,0.02147192]
[1748839991263,1.45562979,104780.0,104770.0,0.01443192]
[1748839991679,1.45562979,104780.0,104770.0,0.01443196]
[1748839992106,1.45562979,104780.0,104770.0,0.00548657]
[1748839992319,1.13549812,104780.0,104770.0,0.01443144]
[1748839992752,1.13549812,104780.0,104770.0,0.01443106]
[1748839993419,1.27562979,104780.0,104770.0,0.01443135]
[1748839993642,1.27562979,104780.0,104770.0,0.00548657]
[1748839993860,0.95549812,104780.0,104770.0,0.01443151]
[1748839994075,1.27562979,104780.0,104770.0,0.01443151]
[1748839994275,1.29515542,104780.0,104770.0,0.01442971]
[1748839994734,0.97502375,104780.0,104770.0,0.01442971]
[1748839995231,0.97502375,104780.0,104770.0,0.01442858]
[1748839995652,1.15502375,104780.0,104770.0,0.01442858]
[1748839996286,1.47515542,104780.0,104770.0,0.01442858]
[1748839997066,1.47515542,104780.0,104770.0,0.01442701]
[1748839998861,1.15502375,104780.0,104770.0,0.01442701]
[1748839999069,1.15502375,104780.0,104770.0,0.01442642]
[1748839999275,1.47515542,104780.0,104770.0,0.00548657]
[1748839999483,1.47515542,104780.0,104770.0,0.01442646]
[1748839999881,1.47515542,104780.0,104770.0,0.01442607]
[1748840000752,1.15502375,104780.0,104770.0,0.01442572]
[1748840001170,1.15502375,104780.0,104770.0,0.01442569]
[1748840001607,1.15502375,104780.0,104770.0,0.00548657]
[1748840001812,1.15502375,104780.0,104770.0,0.0144257]
[1748840003534,1.15502375,104780.0,104770.0,0.01442519]
[1748840003743,1.12452375,104780.0,104770.0,0.01442519]
[1748840003959,0.73240375,104780.0,104770.0,0.01442519]
[1748840004187,1.12476375,104780.0,104770.0,0.01442519]
[1748840004398,1.12476375,104780.0,104770.0,0.01442494]
[1748840004635,1.12476375,104780.0,104770.0,0.01252657]
[1748840004845,1.12476375,104780.0,104770.0,0.02146495]
[1748840006927,1.12476375,104780.0,104770.0,0.01252657]
[1748840007134,1.12476375,104780.0,104770.0,0.02146502]
[1748840007551,1.12476375,104780.0,104770.0,0.01252657]
[1748840008791,1.12476375,104780.0,104770.0,0.02146522]
[1748840009365,1.12476375,104780.0,104770.0,0.02146543]
[1748840010896,1.12476375,104780.0,104770.0,0.02146545]
[1748840011306,1.12476375,104780.0,104770.0,0.02146541]
[1748840011731,1.12476375,104780.0,104770.0,0.22146541]
[1748840012325,1.12476375,104780.0,104770.0,0.2214655]
[1748840012596,1.44489542,104780.0,104770.0,0.2214655]
[1748840012916,1.44489542,104780.0,104770.0,0.21252657]
[1748840013116,1.44489542,104780.0,104770.0,0.22146591]
[1748840013361,1.47579542,104780.0,104770.0,0.22146591]
[1748840013967,1.49033627,104780.0,104770.0,0.21442591]
[1748840014375,1.49033627,104780.0,104770.0,0.20548657]
[1748840014619,1.49033627,104780.0,104770.0,0.21442636]
[1748840017158,1.1702046,104780.0,104770.0,0.21442636]
[1748840017343,1.49033627,104780.0,104770.0,0.21442636]
[1748840017979,1.49033627,104780.0,104770.0,0.20548657]
[1748840021386,1.45891627,104780.0,104770.0,0.20548657]
[1748840021587,1.1387846,104780.0,104770.0,0.20548657]
[1748840022651,1.1387846,104780.0,104770.0,0.21442914]
[1748840022856,1.1387846,104780.0,104770.0,0.21443339]